Workbook

Sheet Лист1
A1: Школа | C1: МАОУ "Школа №18 с углубленным изучением английского языка" Вахитовског орайона города Казани | F1: Согласовал: | G1: должность | H1: Директор
A2: Типовое примерное меню приготавливаемых блюд | G2: фамилия | H2: Р.Р. Бадриева
A3: Возрастная категория | E3: 7-11 лет | G3: дата | H3: 29 | I3: 8 | J3: 2024
H4: день | I4: месяц | J4: год
A5: Неделя | B5: День недели | C5: Прием пищи | D5: Раздел меню | E5: Блюда | F5: Вес блюда, г | G5: Белки | H5: Жиры | I5: Углеводы | J5: Калорийность | K5: № рецептуры | L5: Цена
A6: 1 | B6: 1 | C6: Завтрак | D6: гор.блюдо | E6: Котлеты "Аппетитные" мясо-куриные/Овощи натуральные свежие (помидоры) дополнительный гарнир | F6: 120 | G6: 10.34 | H6: 12.76 | I6: 12.12 | J6: 205 | K6: ТТК 2022г/ №71/2015
D7: гор.блюдо | E7: Каша гречневая рассыпчатая | F7: 150 | G7: 6.62 | H7: 5.39 | I7: 41.87 | J7: 242 | K7: № 302/2015г
D8: гор.напиток | E8: Чай с сахаром | F8: 208 | G8: 0.02 | I8: 7.99 | J8: 32 | K8: №630/1996
D9: хлеб черн. | E9: Хлеб ржано-пшеничный/ Хлеб пшеничный | F9: 40 | G9: 2.52 | H9: 0.36 | I9: 18.84 | J9: 91
D13: итого | F13: =SUM(F6:F12) -> 518 | G13: 19.5 | H13: 18.51 | I13: 80.82 | J13: 570 | L13: 66.8
A14: =A6 -> 1 | B14: 1 | C14: Обед | D14: закуска
D15: 1 блюдо
D16: 2 блюдо
D17: гарнир
D18: напиток
D19: хлеб бел.
D20: хлеб черн.
D23: итого | F23: =SUM(F14:F22) -> 0 | G23: 0 | H23: 0 | I23: 0 | J23: 0 | L23: =SUM(L14:L22) -> 0
A24: =A6 -> 1 | B24: 1 | C24: Итого за день: | F24: =F13+F23 -> 518 | G24: 19.5 | H24: 18.51 | I24: 80.82 | J24: 570 | L24: =L13+L23 -> 66.8
A25: 1 | B25: 2 | C25: Завтрак | D25: гор.блюдо | E25: Жаркое по - домашнему | F25: 200 | G25: 12.05 | H25: 17.93 | I25: 39.88 | J25: 370 | K25: ТТК2023г
D27: гор.напиток | E27: Чай с сахаром | F27: 208 | G27: 0.02 | I27: 7.99 | J27: 32 | K27: №630/1996
D28: хлеб черн. | E28: Хлеб ржано-пшеничный/ Хлеб пшеничный | F28: 40 | G28: 2.52 | H28: 0.36 | I28: 18.84 | J28: 91
D29: закуска | E29: Овощи натуральные свежие (огурцы) дополнительный гарнир | F29: 60 | G29: 0.42 | H29: 0.06 | I29: 1.14 | J29: 7 | K29: №71/2015
D32: итого | F32: =SUM(F25:F31) -> 508 | G32: 15.01 | H32: 18.35 | I32: 67.85 | J32: 500 | L32: 66.8
A33: =A25 -> 1 | B33: 2 | C33: Обед | D33: закуска
D34: 1 блюдо
D35: 2 блюдо
D36: гарнир
D37: напиток
D38: хлеб бел.
D39: хлеб черн.
D42: итого | F42: =SUM(F33:F41) -> 0 | G42: 0 | H42: 0 | I42: 0 | J42: 0 | L42: =SUM(L33:L41) -> 0
A43: =A25 -> 1 | B43: 2 | C43: Итого за день: | F43: =F32+F42 -> 508 | G43: 15.01 | H43: 18.35 | I43: 67.85 | J43: 500 | L43: =L32+L42 -> 66.8
A44: 1 | B44: 3 | C44: Завтрак | D44: гор.блюдо | E44: Чикен | F44: 90 | G44: 9.1 | H44: 10.11 | I44: 19.09 | J44: 202 | K44: ТТК 2021г
D45: гор.блюдо | E45: Макаронные изделия отварные | F45: 150 | G45: 5.64 | H45: 4.46 | I45: 35.94 | J45: 207 | K45: №202/2015г
D46: гор.напиток | E46: Компот их замороженной компотной смеси | F46: 200 | G46: 0.02 | I46: 7.99 | J46: 32 | K46: ТТК 2021г
D47: хлеб черн. | E47: Хлеб ржано-пшеничный/ Хлеб пшеничный | F47: 40 | G47: 2.52 | H47: 0.36 | I47: 18.84 | J47: 91
D48: закуска | E48: Салат из белокачанной капусты | F48: 60 | G48: 0.93 | H48: 3.05 | I48: 5.64 | J48: 54 | K48: №45/2015
D51: итого | F51: =SUM(F44:F50) -> 540 | G51: 18.21 | H51: 17.98 | I51: 87.5 | J51: 586 | L51: 66.8
A52: =A44 -> 1 | B52: 3 | C52: Обед | D52: закуска
D53: 1 блюдо
D54: 2 блюдо
D55: гарнир
D56: напиток
D57: хлеб бел.
D58: хлеб черн.
D61: итого | F61: =SUM(F52:F60) -> 0 | G61: 0 | H61: 0 | I61: 0 | J61: 0 | L61: =SUM(L52:L60) -> 0
A62: =A44 -> 1 | B62: 3 | C62: Итого за день: | F62: =F51+F61 -> 540 | G62: 18.21 | H62: 17.98 | I62: 87.5 | J62: 586 | L62: =L51+L61 -> 66.8
A63: 1 | B63: 4 | C63: Завтрак | D63: гор.блюдо | E63: Плов с говядиной | F63: 200 | G63: 12.22 | H63: 15.61 | I63: 49.03 | J63: 384 | K63: ТТК 2021г
D65: гор.напиток | E65: Чай с сахаром | F65: 208 | G65: 0.02 | I65: 7.99 | J65: 32 | K65: №630/1996
D66: хлеб черн. | E66: Хлеб ржано-пшеничный/ Хлеб пшеничный | F66: 40 | G66: 2.52 | H66: 0.36 | I66: 18.84 | J66: 91
D67: закуска | E67: Овощи натуральные свежие (помидоры) дополнительный гарнир | F67: 60 | G67: 0.66 | H67: 0.12 | I67: 2.28 | J67: 14 | K67: №71/2015
D70: итого | F70: =SUM(F63:F69) -> 508 | G70: 15.42 | H70: 16.09 | I70: 78.14 | J70: 521 | L70: 66.8
A71: =A63 -> 1 | B71: 4 | C71: Обед | D71: закуска
D72: 1 блюдо
D73: 2 блюдо
D74: гарнир
D75: напиток
D76: хлеб бел.
D77: хлеб черн.
D80: итого | F80: =SUM(F71:F79) -> 0 | G80: 0 | H80: 0 | I80: 0 | J80: 0 | L80: =SUM(L71:L79) -> 0
A81: =A63 -> 1 | B81: 4 | C81: Итого за день: | F81: =F70+F80 -> 508 | G81: 15.42 | H81: 16.09 | I81: 78.14 | J81: 521 | L81: =L70+L80 -> 66.8
A82: 1 | B82: 5 | C82: Завтрак | D82: гор.блюдо | E82: Биточки рыбные из минтая/Овощи натуральные свежие (огурцы) дополнительный гарнир | F82: 120 | G82: 12.27 | H82: 15.34 | I82: 16.49 | J82: 241 | K82: ТТК 2021г/ №71/2015
D83: гор.блюдо | E83: Пюре картофельное | F83: 150 | G83: 3.28 | H83: 4.65 | I83: 29.93 | J83: 174 | K83: №312/2015
D84: гор.напиток | E84: Напиток из урюка | F84: 200 | G84: 0.02 | I84: 7.99 | J84: 32 | K84: ТТК 2021г
D85: хлеб черн. | E85: Хлеб ржано-пшеничный/ Хлеб пшеничный | F85: 40 | G85: 2.52 | H85: 0.36 | I85: 18.84 | J85: 91
D89: итого | F89: =SUM(F82:F88) -> 510 | G89: 18.09 | H89: 20.35 | I89: 73.25 | J89: 538 | L89: 66.8
A90: =A82 -> 1 | B90: 5 | C90: Обед | D90: закуска
D91: 1 блюдо
D92: 2 блюдо
D93: гарнир
D94: напиток
D95: хлеб бел.
D96: хлеб черн.
D99: итого | F99: =SUM(F90:F98) -> 0 | G99: 0 | H99: 0 | I99: 0 | J99: 0 | L99: =SUM(L90:L98) -> 0
A100: =A82 -> 1 | B100: 5 | C100: Итого за день: | F100: =F89+F99 -> 510 | G100: 18.09 | H100: 20.35 | I100: 73.25 | J100: 538 | L100: =L89+L99 -> 66.8
A101: 1 | B101: 6 | C101: Завтрак | D101: гор.блюдо | E101: Пельмени "Для умников и умниц" отварные с маслом/ Овощи натуральные свежие (помидоры) дополнительный гарнир | F101: 185 | G101: 16.57 | H101: 16.49 | I101: 40.97 | J101: 377 | K101: ТТК 2020г/ №71/2015
D103: гор.напиток | E103: Чай с сахаром | F103: 208 | G103: 0.02 | I103: 7.99 | J103: 32 | K103: №630/1996
D104: хлеб черн. | E104: Хлеб ржано-пшеничный/ Хлеб пшеничный | F104: 40 | G104: 2.52 | H104: 0.36 | I104: 18.84 | J104: 91
D105: фрукты | E105: Плоды свежие | F105: 120 | G105: 0.48 | H105: 0.48 | I105: 11.76 | J105: 56 | K105: №338/2015
D108: итого | F108: =SUM(F101:F107) -> 553 | G108: 19.59 | H108: 17.33 | I108: 79.56 | J108: 556 | L108: 66.8
A109: =A101 -> 1 | B109: 6 | C109: Обед | D109: закуска
D110: 1 блюдо
D111: 2 блюдо
D112: гарнир
D113: напиток
D114: хлеб бел.
D115: хлеб черн.
D118: итого | F118: =SUM(F109:F117) -> 0 | G118: 0 | H118: 0 | I118: 0 | J118: 0 | L118: =SUM(L109:L117) -> 0
A119: =A101 -> 1 | B119: 6 | C119: Итого за день: | F119: =F108+F118 -> 553 | G119: 19.59 | H119: 17.33 | I119: 79.56 | J119: 556 | L119: =L108+L118 -> 66.8
A120: 2 | B120: 1 | C120: Завтрак | D120: гор.блюдо | E120: Тефтели из говядины в соусе томатном/ Овощи натуральные свежие (помидоры) дополнительный гарнир | F120: 120 | G120: 13.12 | H120: 13.99 | I120: 12.87 | J120: 230 | K120: ТТК 2023/ №71/2015
D121: гор.блюдо | E121: Рис отварной | F121: 150 | G121: 3.83 | H121: 5.43 | I121: 40.01 | J121: 224 | K121: №202/2015
D122: гор.напиток | E122: Чай с сахаром | F122: 208 | G122: 0.02 | I122: 7.99 | J122: 32 | K122: №630/1996
D123: хлеб черн. | E123: Хлеб ржано-пшеничный/ Хлеб пшеничный | F123: 40 | G123: 2.52 | H123: 0.36 | I123: 18.84 | J123: 91
D127: итого | F127: =SUM(F120:F126) -> 518 | G127: 19.49 | H127: 19.78 | I127: 79.71 | J127: 577 | L127: 66.8
A128: =A120 -> 2 | B128: 1 | C128: Обед | D128: закуска
D129: 1 блюдо
D130: 2 блюдо
D131: гарнир
D132: напиток
D133: хлеб бел.
D134: хлеб черн.
D137: итого | F137: =SUM(F128:F136) -> 0 | G137: 0 | H137: 0 | I137: 0 | J137: 0 | L137: =SUM(L128:L136) -> 0
A138: =A120 -> 2 | B138: 1 | C138: Итого за день: | F138: =F127+F137 -> 518 | G138: 19.49 | H138: 19.78 | I138: 79.71 | J138: 577 | L138: =L127+L137 -> 66.8
A139: 2 | B139: 2 | C139: Завтрак | D139: гор.блюдо | E139: Жаркое из птицы | F139: 200 | G139: 12.89 | H139: 15.91 | I139: 35.79 | J139: 341 | K139: ТТК 2023
D141: гор.напиток | E141: Чай с сахаром | F141: 208 | G141: 0.02 | I141: 7.99 | J141: 32 | K141: №630/1996
D142: хлеб черн. | E142: Хлеб ржано-пшеничный/ Хлеб пшеничный | F142: 40 | G142: 2.52 | H142: 0.36 | I142: 18.84 | J142: 91
D143: закуска | E143: Овощи натуральные свежие (огурцы) дополнительный гарнир | F143: 60 | G143: 0.42 | H143: 0.06 | I143: 1.14 | J143: 7 | K143: №71/2015
D146: итого | F146: =SUM(F139:F145) -> 508 | G146: 15.85 | H146: 16.33 | I146: 63.76 | J146: 471 | L146: 66.8
A147: =A139 -> 2 | B147: 2 | C147: Обед | D147: закуска
D148: 1 блюдо
D149: 2 блюдо
D150: гарнир
D151: напиток
D152: хлеб бел.
D153: хлеб черн.
D156: итого | F156: =SUM(F147:F155) -> 0 | G156: 0 | H156: 0 | I156: 0 | J156: 0 | L156: =SUM(L147:L155) -> 0
A157: =A139 -> 2 | B157: 2 | C157: Итого за день: | F157: =F146+F156 -> 508 | G157: 15.85 | H157: 16.33 | I157: 63.76 | J157: 471 | L157: =L146+L156 -> 66.8
A158: 2 | B158: 3 | C158: Завтрак | D158: гор.блюдо | E158: Бифштекс рубленый по -домашнему/ Овощи натуральные свежие (помидоры) дополнительный гарнир | F158: 120 | G158: 11.02 | H158: 12.09 | I158: 16.5 | J158: 217 | K158: ТТК 2022г/№71/2015
D159: гор.блюдо | E159: Каша гречневая рассыпчатая | F159: 150 | G159: 6.62 | H159: 5.39 | I159: 41.87 | J159: 242 | K159: № 302/2015г
D160: гор.напиток | E160: Чай с сахаром | F160: 208 | G160: 0.02 | I160: 7.99 | J160: 32 | K160: №630/1996
D161: хлеб черн. | E161: Хлеб ржано-пшеничный/ Хлеб пшеничный | F161: 40 | G161: 2.52 | H161: 0.36 | I161: 18.84 | J161: 91
D165: итого | F165: =SUM(F158:F164) -> 518 | G165: 20.18 | H165: 17.84 | I165: 85.2 | J165: 582 | L165: 66.8
A166: =A158 -> 2 | B166: 3 | C166: Обед | D166: закуска
D167: 1 блюдо
D168: 2 блюдо
D169: гарнир
D170: напиток
D171: хлеб бел.
D172: хлеб черн.
D175: итого | F175: =SUM(F166:F174) -> 0 | G175: 0 | H175: 0 | I175: 0 | J175: 0 | L175: =SUM(L166:L174) -> 0
A176: =A158 -> 2 | B176: 3 | C176: Итого за день: | F176: =F165+F175 -> 518 | G176: 20.18 | H176: 17.84 | I176: 85.2 | J176: 582 | L176: =L165+L175 -> 66.8
A177: 2 | B177: 4 | C177: Завтрак | D177: гор.блюдо | E177: Плов с птицей | F177: 200 | G177: 15.44 | H177: 19.29 | I177: 53.88 | J177: 430 | K177: ТТК 2024
D179: гор.напиток | E179: Напиток из урюка | F179: 200 | G179: 0.02 | I179: 7.99 | J179: 32 | K179: ТТК 2021
D180: хлеб черн. | E180: Хлеб ржано-пшеничный/ Хлеб пшеничный | F180: 40 | G180: 2.52 | H180: 0.36 | I180: 18.84 | J180: 91
D181: закуска | E181: Овощи натуральные свежие (огурцы) доп. Гарнир | F181: 60 | G181: 0.42 | H181: 0.06 | I181: 1.14 | J181: 7 | K181: №71/2015
D184: итого | F184: =SUM(F177:F183) -> 500 | G184: 18.4 | H184: 19.71 | I184: 81.85 | J184: 560 | L184: 66.8
A185: =A177 -> 2 | B185: 4 | C185: Обед | D185: закуска
D186: 1 блюдо
D187: 2 блюдо
D188: гарнир
D189: напиток
D190: хлеб бел.
D191: хлеб черн.
D194: итого | F194: =SUM(F185:F193) -> 0 | G194: 0 | H194: 0 | I194: 0 | J194: 0 | L194: =SUM(L185:L193) -> 0
A195: =A177 -> 2 | B195: 4 | C195: Итого за день: | F195: =F184+F194 -> 500 | G195: 18.4 | H195: 19.71 | I195: 81.85 | J195: 560 | L195: =L184+L194 -> 66.8
A196: 2 | B196: 5 | C196: Завтрак | D196: гор.блюдо | E196: Ежики рыбные с рисом в томатном соусе | F196: 90 | G196: 10.25 | H196: 8.16 | I196: 25.36 | J196: 230 | K196: ТТК 2024
D197: гор.блюдо | E197: Пюре картофельное | F197: 150 | G197: 3.28 | H197: 4.65 | I197: 29.93 | J197: 174 | K197: №312/2015
D198: гор.напиток | E198: Компот из замороженной компотной смеси | F198: 200 | G198: 0.02 | I198: 7.99 | J198: 32 | K198: ТТК 2021
D199: хлеб черн. | E199: Хлеб ржано-пшеничный/ Хлеб пшеничный | F199: 40 | G199: 2.52 | H199: 0.36 | I199: 18.84 | J199: 91
D200: закуска | E200: Салат из белокачанной капусты | F200: 60 | G200: 0.93 | H200: 3.05 | I200: 5.64 | J200: 54 | K200: №45/2015
D203: итого | F203: =SUM(F196:F202) -> 540 | G203: 17 | H203: 16.22 | I203: 87.76 | J203: 581 | L203: 66.8
A204: =A196 -> 2 | B204: 5 | C204: Обед | D204: закуска
D205: 1 блюдо
D206: 2 блюдо
D207: гарнир
D208: напиток
D209: хлеб бел.
D210: хлеб черн.
D213: итого | F213: =SUM(F204:F212) -> 0 | G213: 0 | H213: 0 | I213: 0 | J213: 0 | L213: =SUM(L204:L212) -> 0
A214: =A196 -> 2 | B214: 5 | C214: Итого за день: | F214: =F203+F213 -> 540 | G214: 17 | H214: 16.22 | I214: 87.76 | J214: 581 | L214: =L203+L213 -> 66.8
A215: 2 | B215: 6 | C215: Завтрак | D215: гор.блюдо | E215: Сосиски отварные / Овощи натуральные свежие (помидоры) дополнительный гарнир | F215: 130 | G215: 11.73 | H215: 15.77 | I215: 9.94 | J215: 226 | K215: №243/2015/ №71/2015
D216: гор.блюдо | E216: Макаронные изделия отварные | F216: 150 | G216: 5.64 | H216: 4.46 | I216: 35.95 | J216: 207 | K216: №202/2015
D217: гор.напиток | E217: Чай с сахаром | F217: 208 | G217: 0.02 | I217: 7.99 | J217: 32 | K217: №630/1996
D218: хлеб черн. | E218: Хлеб ржано-пшеничный/ Хлеб пшеничный | F218: 40 | G218: 2.52 | H218: 0.36 | I218: 18.84 | J218: 91
D222: итого | F222: =SUM(F215:F221) -> 528 | G222: 19.91 | H222: 20.59 | I222: 72.72 | J222: 556 | L222: 66.8
A223: =A215 -> 2 | B223: 6 | C223: Обед | D223: закуска
D224: 1 блюдо
D225: 2 блюдо
D226: гарнир
D227: напиток
D228: хлеб бел.
D229: хлеб черн.
D232: итого | F232: =SUM(F223:F231) -> 0 | G232: 0 | H232: 0 | I232: 0 | J232: 0 | L232: =SUM(L223:L231) -> 0
A233: =A215 -> 2 | B233: 6 | C233: Итого за день: | F233: =F222+F232 -> 528 | G233: 19.91 | H233: 20.59 | I233: 72.72 | J233: 556 | L233: =L222+L232 -> 66.8
C234: Среднее значение за период: | F234: =(F24+F43+F62+F81+F100+F119+F138+F157+F176+F195+F214+F233)/(IF(F24=0,0,1)+IF(F43=0,0,1)+IF(F62=0,0,1)+IF(F81=0,0,1)+IF(F100=0,0,1)+IF(F119=0,0,1)+IF(F138=0,0,1)+IF(F157=0,0,1)+IF(F176=0,0,1)+IF(F195=0,0,1)+IF(F214=0,0,1)+IF(F233=0,0,1)) -> 520.75 | G234: 18.05416667 | H234: 18.25666667 | I234: 78.17666667 | J234: 549.8333333 | L234: =(L24+L43+L62+L81+L100+L119+L138+L157+L176+L195+L214+L233)/(IF(L24=0,0,1)+IF(L43=0,0,1)+IF(L62=0,0,1)+IF(L81=0,0,1)+IF(L100=0,0,1)+IF(L119=0,0,1)+IF(L138=0,0,1)+IF(L157=0,0,1)+IF(L176=0,0,1)+IF(L195=0,0,1)+IF(L214=0,0,1)+IF(L233=0,0,1)) -> 66.8
